Cogmind - Beta 14 @@@ ROGUE MODE // 2024.09.12 @ 07:14:53 Player: Dadrick Result: Destroyed by G-67 Veteran with Plasma Rifle Performance ------------- Evolutions (6) 3000 Regions Visited (23) 4600 Robots Destroyed (315) 1575 Value Destroyed (12476) 12476 Prototype IDs (46) 920 Alien Tech Used (0) 0 Bonus (2845) 2845 TOTAL SCORE: 25416 Bonus ------- High Alert Combat Kills 347 Follower Combat Kills 460 Network Hubs Disabled 200 Aligned with FarCom 300 Met Warlord at Base 500 MAIN.C Attacked Warlord 500 Warlord Defense Kills 220 Met R17 at Cetus 500 Friendly Fire -182 Cogmind --------- Core Integrity 0/1150 Matter 290/300 Energy 12/100 System Corruption 54% Temperature Warm (182) Movement Core (50) Location -4/Upper Caves Parts ------- > --- POWER (2) -------- (None) > --- PROPULSION (6) --- (None) > --- UTILITY (9) ------ Advanced Targeting Computer Advanced Target Analyzer > --- WEAPON (2) ------- (None) > --- INVENTORY (5) ---- Micro Fission Core Medium Matter Pod (100) Improved Kinecellerator Advanced Variable Charge Gun Improved Plasma Cutter Peak State ------------ > --- POWER ------------ Reinforced Deuterium Engine Quantum Reactor > --- PROPULSION ------- Centrium Heavy Treads Centrium Heavy Treads Centrium Heavy Treads > --- UTILITY ---------- Advanced Heat Sink Improved Cooling System Large Storage Unit Advanced Targeting Computer Improved Medium Armor Plating Centrium Medium Armor Plating Centrium Medium Armor Plating > --- WEAPON ----------- Advanced KE Penetrator Advanced KE Penetrator > --- INVENTORY -------- Neutrino Core Quantum Reactor Advanced Heat Sink Superbattery Centrium Medium Armor Plating High-powered Tractor Beam Thief Drone Bay Gatling Laser Advanced Variable Charge Gun Plasma Cannon KE Penetrator KE Penetrator Advanced KE Penetrator Power Sword [Rating: 127] Favorites ----------- Power Neutrino Core Engine Reinforced Deuterium Engine Power Core Neutrino Core Reactor Quantum Reactor Propulsion Light Treads Treads Light Treads Leg Light Armored Exoskeleton Wheel Compact Wheel Hover Unit Antigrav System Utility Advanced Targeting Computer Device Advanced Heat Sink Storage Large Storage Unit Processor Advanced Targeting Computer Hackware Hacking Suite Protection Improved Medium Armor Plating Weapon Autogun Energy Gun Advanced Variable Charge Gun Energy Cannon Plasma Cannon Ballistic Gun Autogun Ballistic Cannon Hardcell Cannon Launcher Grenade Launcher Special Weapon Mining Laser Impact Weapon Heavy Mace Slashing Weapon Power Sword Build | -11 -10 -10 -10 -9 -8 -8 -8 -8 -6 -6 -6 -6 -6 -5 -5 -5 -5 -5 -5 -4 -4 -4 -4 ------- Run | Yrd Mat Min Exi Min Mat Sto Rec Scr Fac Ext Cet Arc Hub Fac Was Fac Upp Upp War Pro Fac Upp Upp Slots Evolved 12 | . . . . . 4 . . . 4 . . . . 2 . . . . . . 2 . . Power 1 | . . . . . . . . . 1 . . . . . . . . . . . . . . Propulsion 4 | . . . . . 1 . . . 1 . . . . 2 . . . . . . . . . Utility 7 | . . . . . 3 . . . 2 . . . . . . . . . . . 2 . . Weapon . | . . . . . . . . . . . . . . . . . . . . . . . . Parts Attached 404 | 7 15 3 . 2 60 35 4 1 28 23 31 11 8 10 9 33 9 4 5 14 60 16 16 Power 35 | 1 1 1 . . 5 1 2 . 4 3 4 . . . 1 4 1 . . . 5 1 1 Engine 19 | 1 1 1 . . 3 . 2 . 3 3 2 . . . . 2 . . . . 1 . . Core 11 | . . . . . 2 1 . . 1 . . . . . . 1 1 . . . 3 1 1 Reactor 5 | . . . . . . . . . . . 2 . . . 1 1 . . . . 1 . . Propulsion 52 | 2 2 . . . 10 4 . . 3 . 5 . . 1 1 6 3 . 2 1 8 3 1 Treads 38 | 2 2 . . . 8 4 . . 1 . 5 . . 1 1 3 3 . 2 1 2 3 . Leg 8 | . . . . . 1 . . . 2 . . . . . . 3 . . . . 1 . 1 Wheel 1 | . . . . . 1 . . . . . . . . . . . . . . . . . . Hover 5 | . . . . . . . . . . . . . . . . . . . . . 5 . . Flight . | . . . . . . . . . . . . . . . . . . . . . . . . Utility 159 | 2 4 . . . 20 11 2 1 10 11 11 7 . 5 3 14 2 4 3 7 30 6 6 Device 103 | 1 3 . . . 9 6 1 . 6 8 4 3 . 4 2 8 1 2 2 7 26 4 6 Storage 6 | 1 1 . . . . . . . . . . . . . . 3 . . . . 1 . . Processor 9 | . . . . . 3 1 . . . 2 . . . . . 2 . . . . 1 . . Hackware 5 | . . . . . 1 . . 1 2 . . . . . . . . . . . 1 . . Protection 36 | . . . . . 7 4 1 . 2 1 7 4 . 1 1 1 1 2 1 . 1 2 . Artifact . | . . . . . . . . . . . . . . . . . . . . . . . . Weapon 158 | 2 8 2 . 2 25 19 . . 11 9 11 4 8 4 4 9 3 . . 6 17 6 8 Energy Gun 42 | . . . . . 12 8 . . . 3 5 . 1 . . 3 . . . . 5 . 5 Energy Cannon 37 | . . . . . 2 7 . . 5 3 4 . 1 . 3 1 . . . . 7 4 . Ballistic Gun 34 | 2 5 1 . 1 4 2 . . 1 . 1 4 4 2 1 5 1 . . . . . . Ballistic Cannon 10 | . . . . . 1 . . . . . . . . . . . 2 . . 3 3 . 1 Launcher 17 | . . . . 1 3 1 . . 1 3 . . . . . . . . . 2 2 2 2 Special Weapon 6 | . 3 1 . . . . . . . . 1 . . . . . . . . 1 . . . Impact Weapon 7 | . . . . . 3 1 . . 3 . . . . . . . . . . . . . . Slashing Weapon 5 | . . . . . . . . . 1 . . . 2 2 . . . . . . . . . Piercing Weapon . | . . . . . . . . . . . . . . . . . . . . . . . . Special Melee Weapon . | . . . . . . . . . . . . . . . . . . . . . . . . Unidentified Prototypes 11 | . . . . . 3 1 1 . . . 4 . . . . 2 . . . . . . . Corrupted Parts 4 | . . . . . . . . . . . . . . . . . . . . 1 . 3 . System Corruption 40 | . . . . . . . . . . . . . . . . . . . . 10 . 30 . Parts Lost 73 | . 1 . . . 7 4 . . 2 4 8 . . . 3 10 . . . . 9 7 18 Power 13 | . . . . . 1 1 . . 2 . 1 . . . 1 3 . . . . 1 1 2 Propulsion 16 | . . . . . 1 . . . . . . . . . . 3 . . . . 2 5 5 Utility 30 | . 1 . . . 3 3 . . . 2 3 . . . 2 3 . . . . 5 1 7 Weapon 14 | . . . . . 2 . . . . 2 4 . . . . 1 . . . . 1 . 4 Highest Loss Streak 9 | . 1 . . . 6 2 . . 1 2 4 . . . 3 4 . . . . 3 6 9 To Critical Strikes 1 | . . . . . . . . . . . . . . . . . . . . . 1 . . Average Slot Usage (%) 92 | . 99 100 100 100 98 99 100 100 87 85 85 85 86 82 71 82 95 100 95 94 94 89 68 Engine 6 | . 14 14 14 14 6 . 7 9 11 10 6 6 6 5 5 4 5 5 5 5 2 . . Core 2 | . . . . . 2 8 1 . 1 1 . . . . . 2 1 5 5 5 5 4 8 Reactor 1 | . . . . . . . . . . . 5 6 6 5 4 3 . . . . 2 5 . Treads 19 | . 28 28 28 28 22 27 27 27 3 . 12 13 13 17 17 17 20 23 23 35 24 15 4 Leg 3 | . . . . . . . . . 10 13 . . . . . 5 12 11 10 . 2 . 4 Device 13 | . 13 14 14 14 11 11 12 5 8 15 17 14 13 14 14 15 11 11 11 11 22 18 19 Storage 7 | . 14 14 14 14 9 9 9 9 6 6 6 6 6 5 3 5 5 5 5 5 5 5 4 Processor 7 | . . . . . 10 9 9 9 6 6 6 6 6 5 5 10 11 11 11 11 11 10 10 Hackware 4 | . . . . . 8 9 9 12 15 10 . . . . . . . . . . . 5 4 Protection 5 | . . . . . 4 6 5 9 7 5 14 18 20 13 8 3 10 11 6 5 2 3 . Energy Gun 2 | . . . . . 8 8 . . . 3 6 1 . . . 3 . . . . . . 9 Energy Cannon 3 | . . . . . . 2 9 9 12 8 5 1 . . 4 1 . . . . 3 9 . Ballistic Gun 6 | . 24 27 28 27 2 7 9 9 . . . 10 11 9 3 5 8 . . . . . . Ballistic Cannon 1 | . . . . . 3 . . . . . . . . . . . 2 11 11 10 5 . . Peak Build Rating 127 | 7 11 11 12 12 38 38 40 43 63 64 106 111 110 127 125 107 80 79 88 86 114 112 81 Average Rating 59 | 5 9 10 11 11 28 31 34 41 58 62 97 104 109 125 108 89 72 78 82 82 97 88 65 On Entrance 60 | . 7 11 11 12 12 38 33 40 43 62 64 99 110 110 125 87 73 79 79 86 85 113 78 Naked Turns . | . . . . . . . . . . . . . . . . . . . . . . . . Heaviest Build 95 | 12 32 32 32 32 46 39 39 38 64 69 83 91 91 91 95 65 75 75 82 82 85 75 74 Greatest Support 240 | 40 40 40 40 40 60 62 62 62 84 60 160 160 160 240 240 230 110 110 158 158 158 101 51 Greatest Overweight (x) 2 | . . . . . 2 . . . 1 1 . . . . . 2 . . . . 1 2 2 Average Overweight (x) . | . . . . . . . . . . . . . . . . . . . . . . . 1 Largest Inventory Capacity 15 | 8 15 15 15 15 15 15 15 15 15 15 15 15 15 15 15 10 10 10 10 10 10 10 10 Average Capacity 13 | 7 14 15 15 15 15 15 15 15 15 15 15 15 15 15 11 8 10 10 10 10 10 10 9 Most Carried 15 | 4 15 15 15 15 15 15 15 15 15 15 15 15 15 15 15 10 10 10 10 10 10 10 10 Average Carried 12 | 2 11 15 14 14 13 13 14 14 14 14 14 14 15 14 11 7 10 10 10 10 9 9 4 Final Capacity 15 | 8 15 15 15 15 15 15 15 15 15 15 15 15 15 15 5 10 10 10 10 10 10 10 5 Final Carried 15 | 4 15 15 15 15 15 15 15 15 15 15 15 15 15 15 5 10 10 10 10 10 10 10 5 Class Distribution -------------------- 49% | Scavenger-Mutant 31% | Mutant 13% | Hacker-Mutant 4% | Scavenger-Skirmisher Dominant Class ---------------- Mutant | -10/Materials Mutant | -10/Mines Mutant | -10/Exiles Mutant | -9/Mines Mutant | -8/Materials Scavenger-Mutant | -8/Storage Mutant | -8/Recycling Mutant | -8/Scraptown Hacker-Mutant | -6/Factory Hacker-Mutant | -6/Extension Scavenger-Mutant | -6/Cetus Scavenger-Mutant | -6/Archives Scavenger-Mutant | -6/Hub_04(d) Scavenger-Mutant | -5/Factory Scavenger-Mutant | -5/Waste Scavenger-Mutant | -5/Factory Scavenger-Mutant | -5/Upper Caves Scavenger-Mutant | -5/Upper Caves Scavenger-Mutant | -5/Warlord Scavenger-Mutant | -4/Proximity Caves Scavenger-Mutant | -4/Factory Scavenger-Mutant | -4/Upper Caves Scavenger-Mutant | -4/Upper Caves Resources | -11 -10 -10 -10 -9 -8 -8 -8 -8 -6 -6 -6 -6 -6 -5 -5 -5 -5 -5 -5 -4 -4 -4 -4 ----------- Run | Yrd Mat Min Exi Min Mat Sto Rec Scr Fac Ext Cet Arc Hub Fac Was Fac Upp Upp War Pro Fac Upp Upp Matter Collected 8934 | 365 594 253 . 95 962 495 106 . 370 389 360 270 59 250 170 950 240 86 191 265 1811 372 281 Remotely 3118 | . 344 . . . 160 42 . . . 118 . 91 . 250 . 359 . 62 161 185 1346 . . Salvage Created 15604 | 122 627 225 . 98 1513 849 490 . 788 944 1144 440 228 250 217 2435 250 . 36 1441 2180 887 440 Parts 694 | 11 44 15 . 2 61 48 13 . 41 47 44 20 17 18 5 121 7 . 1 48 90 25 16 Haulers Intercepted 15 | . 2 . . . 3 6 . . . . . . . . . 1 . . . . 3 . . Recyclers Shooed 27 | 1 . 1 . 2 3 . 2 . 2 1 . . . . . 10 . . . . 5 . . Parts Field Recycled . | . . . . . . . . . . . . . . . . . . . . . . . . Retrieved Matter . | . . . . . . . . . . . . . . . . . . . . . . . . Parts Self-Destructed 23 | . . . . . . . . . . . . . . . . . 6 . . 2 . 5 10 Prevented 44 | . . . . . . . . . . . . . . . . . . . . 26 . 15 3 Kills | -11 -10 -10 -10 -9 -8 -8 -8 -8 -6 -6 -6 -6 -6 -5 -5 -5 -5 -5 -5 -4 -4 -4 -4 ------- Run | Yrd Mat Min Exi Min Mat Sto Rec Scr Fac Ext Cet Arc Hub Fac Was Fac Upp Upp War Pro Fac Upp Upp Combat Hostiles Destroyed 202 | . 11 7 . 2 21 11 . . 11 17 20 4 2 2 1 20 6 . 1 18 27 12 9 Guns 90 | . 11 7 . . 13 9 . . 1 10 6 3 2 2 . 15 6 . . . 1 . 4 Cannons 51 | . . . . . 5 . . . 7 4 10 1 . . . 3 . . 1 2 17 1 . AOE 39 | . . . . 2 1 1 . . 2 3 . . . . . . . . . 12 6 8 4 Classes Destroyed 20 | 3 5 . . . 3 2 . . 1 . . . . . 1 2 . . 1 . 2 . . Worker 17 | 1 . . . . 4 1 . . 1 . . . 1 . . 8 . . . . 1 . . Builder 16 | . . . . . 2 1 . . . 4 . . 3 1 . 3 . . . . 2 . . Tunneler 4 | 3 . . . . . . . . 1 . . . . . . . . . . . . . . Hauler 15 | . 2 . . . 3 6 . . . . . . . . . 1 . . . . 3 . . Recycler 28 | 1 2 . . 1 2 1 7 . 1 1 . . . 1 . 6 . . . . 5 . . Mechanic 1 | . . . . . . . . . . . . . . . . . . . . . 1 . . Operator 10 | . 3 . . . 1 . . . 1 . . 4 1 . . . . . . . . . . Watcher 22 | . 3 . . . 3 1 . . 2 3 2 . 1 . . 6 . . . . 1 . . Swarmer 35 | . 5 3 . . . 2 . . . 2 4 . . . . . 4 . . 6 3 2 4 Saboteur 1 | . . . . . . . . . . . . . . . . . . . . . 1 . . Grunt 83 | . 6 4 . 2 16 6 . . 5 11 7 . 1 . . 9 1 . . 4 6 2 3 Brawler 10 | . . . . . . 1 . . 2 . 1 . . . . . . . . 4 1 1 . Duelist 9 | . . . . . . 1 . . . . 1 . . . . . . . . 2 . 5 . Sentry 18 | . . . . . 3 1 . . 1 3 . 4 . . . 1 1 . . 2 . 2 . Specialist 2 | . . . . . . . . . . . . . . . . 2 . . . . . . . Hunter 9 | . . . . . 2 . . . . 1 . . . . . 2 . . . . 4 . . Programmer 24 | . . . . . . . . . 3 . . . 1 2 . 5 . . . . 11 . 2 Heavy 2 | . . . . . . . . . . . . . . . . 1 . . . . 1 . . Compactor 1 | . . . . . . . . . . . . . . . 1 . . . . . . . . Cetus Guard 7 | . . . . . . . . . . . 7 . . . . . . . . . . . . Striker 1 | . . . . . . . . . . . . . . . . . . . 1 . . . . Best Kill Streak 17 | 1 11 3 . 3 3 4 4 . 5 5 6 3 5 4 1 15 4 . 1 17 13 8 4 Combat Bots Only 17 | . 6 3 . 2 3 4 . . 3 5 6 3 1 1 1 5 4 . 1 17 5 8 4 Max Kills in Single Turn 5 | 1 3 1 . 3 2 3 1 . 1 2 1 1 5 1 1 2 1 . 1 3 2 3 2 Gunslinging 1 | . . . . . . 1 . . . 1 . . . . . . . . . . . . . Exploded 3 | . . . . 2 1 1 . . 1 2 . . . . . . . . . 3 2 2 2 Melee . | . . . . . . . . . . . . . . . . . . . . . . . . Uniques/NPCs Destroyed . | . . . . . . . . . . . . . . . . . . . . . . . . Combat | -11 -10 -10 -10 -9 -8 -8 -8 -8 -6 -6 -6 -6 -6 -5 -5 -5 -5 -5 -5 -4 -4 -4 -4 -------- Run | Yrd Mat Min Exi Min Mat Sto Rec Scr Fac Ext Cet Arc Hub Fac Was Fac Upp Upp War Pro Fac Upp Upp Hostile Shots Fired 1373 | . 54 31 . 4 120 88 . . 63 115 213 24 2 26 14 147 23 . 12 46 205 29 157 Missed 391 | . 13 9 . 1 34 16 . . 18 46 42 9 . 7 . 41 9 . 4 13 77 5 47 Damage Taken 19936 | . 564 258 . 45 1340 1169 . . 833 1391 3851 364 134 279 597 2775 230 . 123 406 2628 902 2047 Core 2268 | . 66 32 . 1 158 170 . . 43 215 139 . . . 26 259 . . . . 221 118 820 Absorbed by Shields 1140 | . . . . . . . . . . . . . . 102 69 174 . . 67 386 134 . 208 Reduced by Siege Mode 609 | . . . . . . . . . . . 271 39 . 45 . 254 . . . . . . . Redirected to Shielding 51 | . . . . . . 15 . . . . . . . . . . . . . . 36 . . Ignored by Resistances 217 | . . . . . 38 . . . . 18 161 . . . . . . . . . . . . Regen/Repaired (Parts) 463 | . 194 . . . 136 . . . . . . . . . . . . . 133 . . . . Core Remaining (%) 64 | 100 . . . 60 . . . 40 . . . . 53 . . . . . . 71 . . . Volleys Fired 946 | 25 57 22 . 6 110 88 10 . 50 57 68 34 8 13 47 111 11 . 4 46 126 22 31 Largest 2 | 2 2 2 . 2 2 2 2 . 2 2 2 2 2 2 2 2 2 . 2 2 2 1 2 Hottest 240 | 40 100 100 . 46 122 122 91 . 148 160 240 240 240 70 196 178 68 . 130 130 240 81 240 Shots Fired 1598 | 50 109 40 . 10 184 135 20 . 91 93 121 61 14 24 71 213 23 1 8 53 205 22 50 Gun 885 | 50 103 36 . 7 133 91 10 . 5 30 52 50 13 24 13 171 22 . . . 44 . 31 Cannon 610 | . . . . . 49 42 10 . 81 52 68 11 1 . 58 42 1 1 8 14 153 6 13 Launcher 64 | . . . . 3 2 2 . . 5 11 . . . . . . . . . 11 8 16 6 Special 39 | . 6 4 . . . . . . . . 1 . . . . . . . . 28 . . . Kinetic 708 | 50 103 36 . 7 87 23 10 . 5 . . 42 12 24 13 110 23 1 8 14 133 . 7 Thermal 745 | . 6 4 . . 47 110 10 . 81 82 120 19 2 . 58 103 . . . 28 44 . 31 Explosive 23 | . . . . 3 2 2 . . 5 11 . . . . . . . . . . . . . Electromagnetic 121 | . . . . . 48 . . . . . . . . . . . . . . 11 28 22 12 Robot Hit Streak 33 | 14 11 6 . 2 23 13 10 . 16 12 32 29 12 16 16 30 6 . 4 33 14 7 4 Robot Miss Streak 6 | 3 3 2 . 3 4 4 2 . 3 5 6 1 1 1 1 3 2 1 1 1 3 3 2 Penetration Max 1 | . . . . . . . . . . . . 1 . . . 1 1 . . . . . . Secondary Targets 9 | . 1 . . . 1 2 . . . 1 . . . . . 2 2 . . . . . . Max Gunslinging Chain 1 | . 1 . . . 1 1 . . . 1 . . . . . 1 1 . . . . . . Shots Hit Robots 1036 | 32 63 22 . 4 139 67 14 . 66 59 96 46 5 22 40 142 15 . 6 47 111 11 29 Core Hits 556 | 8 26 9 . 6 62 32 7 . 36 64 53 19 8 7 2 78 9 . 1 34 58 24 13 Critical Kills 19 | 1 . . . . . . . . 1 1 . 4 1 2 1 7 1 . . . . . . Critical Parts Destroyed 8 | . . 1 . . 1 . . . . . . 2 . 1 . 2 1 . . . . . . Critical Strikes 59 | 1 . 1 . . 9 6 . . 1 1 . 10 1 3 2 9 2 . . 1 10 . 2 Burn 11 | . . . . . 5 6 . . . . . . . . . . . . . . . . . Meltdown 4 | . . . . . . . . . 1 1 . . . . 1 1 . . . . . . . Destroy 28 | 1 . 1 . . 1 . . . . . . 10 1 3 1 8 2 . . . . . . Blast 14 | . . . . . 3 . . . . . . . . . . . . . . . 10 . 1 Corrupt 1 | . . . . . . . . . . . . . . . . . . . . . . . 1 Sever 1 | . . . . . . . . . . . . . . . . . . . . 1 . . . Melee Attacks 32 | . . . . . 11 5 . . 8 . . . 4 4 . . . . . . . . . Impact 21 | . . . . . 11 5 . . 5 . . . . . . . . . . . . . . Slashing 11 | . . . . . . . . . 3 . . . 4 4 . . . . . . . . . Piercing . | . . . . . . . . . . . . . . . . . . . . . . . . Sneak Attacks 5 | . . . . . 4 . . . . . . . . 1 . . . . . . . . . Combat Hostiles . | . . . . . . . . . . . . . . . . . . . . . . . . Follow-up Attacks . | . . . . . . . . . . . . . . . . . . . . . . . . Damage Inflicted 35086 | 341 1246 351 . 261 3503 1532 271 . 2005 2328 2645 1248 537 738 1313 5230 419 . 253 2700 5742 1163 1260 Guns 14503 | 341 937 351 . 44 2048 1207 106 . 32 640 1403 1122 88 616 226 4076 419 . . . 289 . 558 Cannons 12256 | . . . . . 687 91 165 . 1499 640 1242 126 . . 1087 1090 . . 253 480 4412 59 425 Explosions 7287 | . 309 . . 217 275 234 . . 474 1048 . . 449 . . 64 . . . 1795 1041 1104 277 Melee 615 | . . . . . 493 . . . . . . . . 122 . . . . . . . . . Ramming . | . . . . . . . . . . . . . . . . . . . . . . . . Kinetic 13269 | 341 937 351 . 44 1234 258 106 . 32 . . 933 88 616 226 2761 419 . 253 480 3945 . 245 Thermal 13453 | . 309 . . . 550 1040 165 . 1499 1280 2645 315 . . 1087 2469 . . . 843 588 105 558 Explosive 2152 | . . . . 217 179 234 . . 474 1048 . . . . . . . . . . . . . Electromagnetic 5597 | . . . . . 1047 . . . . . . . 449 . . . . . . 1377 1209 1058 457 Impact 493 | . . . . . 493 . . . . . . . . . . . . . . . . . . Slashing 122 | . . . . . . . . . . . . . . 122 . . . . . . . . . Piercing . | . . . . . . . . . . . . . . . . . . . . . . . . Highest Corruption 54 | . 1 1 1 1 . 4 4 . 5 6 6 6 2 8 8 19 19 19 19 10 21 54 54 Average Corruption 10 | . 1 1 1 1 . 3 4 . 1 3 6 5 2 7 8 11 19 19 19 10 11 43 54 Corruption Purged 12 | . . . . . . . . . 4 2 . 6 . . . . . . . . . . . Corruption Blocked . | . . . . . . . . . . . . . . . . . . . . . . . . Effects 486 | . 9 11 3 10 . 20 18 . 17 34 33 11 . 6 13 62 31 29 3 6 69 45 56 Message Errors 105 | . 2 2 2 4 . 7 4 . 3 8 5 2 . 1 1 12 4 5 1 2 14 15 11 Matter Fused 113 | . 2 7 . . . 7 4 . 4 8 8 2 . 3 3 20 7 8 2 1 12 7 8 Heat Flow Errors 59 | . 2 1 . 2 . 1 5 . 2 2 8 1 . 1 4 5 4 4 . 1 8 3 5 Energy Discharges 60 | . 1 1 1 1 . 1 1 . 4 3 2 3 . 1 1 9 3 3 . 1 8 11 5 Parts Rejected 4 | . . . . . . . . . . . . . . . . . 1 . . . 1 . 2 Parts Fused 4 | . . . . . . . . . 1 . 1 . . . . . . . . . 1 . 1 Data Loss (minor) 59 | . . . . . . 1 2 . 3 6 6 1 . . 2 4 5 6 . . 10 4 9 Data Loss (major) 28 | . 1 . . 1 . 1 . . . . 1 1 . . 1 3 3 2 . 1 7 3 3 Misfires 19 | . 1 . . 1 . 2 . . . 3 . . . . . 3 2 1 . . 2 1 3 Alerts 13 | . . . . 1 . . 2 . . 2 . 1 . . . 3 1 . . . 2 . 1 Misdirections 3 | . . . . . . . . . . . . . . . . . . . . . . . 3 Weapon Failures 19 | . . . . . . . . . . 2 2 . . . 1 3 1 . . . 4 1 5 Overload Shots 7 | . . . . . . . . . . . 1 2 1 . . . . . . . 1 . 2 Overflow Damage 771 | . 52 . . . 292 . 12 . 20 . 16 . 13 . . 31 . . 15 89 209 22 . Projectiles 369 | . . . . . . . 12 . 20 . 16 . . . . 31 . . 15 79 196 . . Explosions 160 | . 52 . . . 50 . . . . . . . 13 . . . . . . 10 13 22 . Melee 242 | . . . . . 242 . . . . . . . . . . . . . . . . . . Knockbacks 50 | . . . . . 15 . . . . . . . . . . . . . 5 2 26 . 2 Impact 3 | . . . . . 3 . . . . . . . . . . . . . . . . . . Kinetic 45 | . . . . . 12 . . . . . . . . . . . . . 4 2 25 . 2 Secondary 2 | . . . . . . . . . . . . . . . . . . . 1 . 1 . . Self-Inflicted Damage 533 | . 63 . . 3 33 . . . . 24 . . 102 . . . . . . 126 23 133 26 Shots 23 | . 1 . . 1 1 . . . . 2 . . 1 . . . . . . 7 1 8 1 Rammed . | . . . . . . . . . . . . . . . . . . . . . . . . Targets Rammed . | . . . . . . . . . . . . . . . . . . . . . . . . Kicked . | . . . . . . . . . . . . . . . . . . . . . . . . Crushed . | . . . . . . . . . . . . . . . . . . . . . . . . Highest Temperature 462 | . 246 169 . 273 60 405 248 . 284 339 295 200 126 154 273 240 271 257 361 462 272 240 359 Average Temperature 87 | . 43 30 . 86 23 131 90 . 101 98 118 75 73 96 53 51 82 104 189 136 113 68 103 Received Heat Transfer 4448 | . 240 102 . 24 783 486 . . 261 420 990 27 . . . 309 27 . 24 63 123 72 497 Effects 16 | . . . . . . 7 . . 1 1 2 . . . 1 . . . . 3 . . 1 Shutdowns 2 | . . . . . . 1 . . . 1 . . . . . . . . . . . . . Energy Bleed 3 | . . . . . . 1 . . 1 . . . . . 1 . . . . . . . . Interference 10 | . . . . . . 5 . . . . 2 . . . . . . . . 3 . . . Matter Decay 1 | . . . . . . . . . . . . . . . . . . . . . . . 1 Siege Activations 12 | . . . . . . . . . . . 4 2 1 1 . 4 . . . . . . . Total Turns 398 | . . . . . . . . . . . 171 54 7 30 . 136 . . . . . . . Longest Duration 89 | . . . . . . . . . . . 89 37 7 30 . 58 . . . . . . . Robots Corrupted 17 | . . . . . 6 . . . . . . . . . . . . . . 4 3 3 1 Combat Hostiles 12 | . . . . . 1 . . . . . . . . . . . . . . 4 3 3 1 Parts Fried 50 | . . . . . 21 . . . . . . . 2 . . . . . . 6 12 7 2 Impact Corruptions 8 | . . . . . 8 . . . . . . . . . . . . . . . . . . Robots Melted 11 | . . . . . 1 1 . . 1 1 4 . . . 1 2 . . . . . . . Combat Hostiles 10 | . . . . . 1 1 . . 1 . 4 . . . 1 2 . . . . . . . Parts Melted 47 | . 1 . . . . 3 . . 5 11 8 1 . . . 13 . . . . 1 . 4 Heat Transferred 22761 | . 250 . . . 1458 2368 296 . 2671 2672 4837 472 . . 1650 3402 . . . 1299 583 100 703 Parts Sabotaged . | . . . . . . . . . . . . . . . . . . . . . . . . Parts Stolen . | . . . . . . . . . . . . . . . . . . . . . . . . Parts Stripped . | . . . . . . . . . . . . . . . . . . . . . . . . Power Chain Reactions 9 | . . . . . 2 . . . . . . . . . . . . . . 3 1 3 . Alert | -11 -10 -10 -10 -9 -8 -8 -8 -8 -6 -6 -6 -6 -6 -5 -5 -5 -5 -5 -5 -4 -4 -4 -4 ------- Run | Yrd Mat Min Exi Min Mat Sto Rec Scr Fac Ext Cet Arc Hub Fac Was Fac Upp Upp War Pro Fac Upp Upp Peak Influence 650 | 25 381 213 . 92 397 282 99 . 171 343 211 190 262 163 6 650 . . . . 528 . . Initial 242 | . 16 83 . . 35 120 49 . . 34 161 6 . 128 . . . . . . 242 . . Average 146 | 10 187 47 . 22 134 172 38 . 63 109 74 93 22 79 2 301 . . . . 404 . . Maximum Alert Level 2 | . 1 1 . . 1 1 . . . 1 1 . 1 . . 2 . . . . 2 . . Low Security (%) 72 | 100 42 98 . 100 72 62 100 . 100 85 99 100 99 100 100 32 . . . . 5 . . Level 1 18 | . 57 1 . . 27 37 . . . 14 . . . . . 29 . . . . 39 . . Level 2 9 | . . . . . . . . . . . . . . . . 37 . . . . 54 . . Level 3 . | . . . . . . . . . . . . . . . . . . . . . . . . Level 4 . | . . . . . . . . . . . . . . . . . . . . . . . . Level 5 . | . . . . . . . . . . . . . . . . . . . . . . . . High Security . | . . . . . . . . . . . . . . . . . . . . . . . . Max Security . | . . . . . . . . . . . . . . . . . . . . . . . . Squads Dispatched 49 | . 3 1 . . 3 4 . . 7 4 1 . 2 2 . 7 . . . 1 14 . . Investigation 10 | . . 1 . . . . . . 2 3 1 . . 1 . 1 . . . . 1 . . Extermination 10 | . . . . . . . . . 2 . . . 1 1 . 2 . . . . 4 . . Reinforcement 19 | . 3 . . . 3 . . . 3 1 . . 1 . . 3 . . . . 5 . . Assault 3 | . . . . . . . . . . . . . . . . 1 . . . 1 1 . . Garrison 7 | . . . . . . 4 . . . . . . . . . . . . . . 3 . . Intercept . | . . . . . . . . . . . . . . . . . . . . . . . . Searches Triggered . | . . . . . . . . . . . . . . . . . . . . . . . . Construction Impeded 3 | . . . . . 1 . . . . . . . . . . . . . . . 2 . . Haulers Reinforced 3 | . . . . . . . . . 1 . . . . . . 1 . . . . 1 . . Active Scanning Responses . | . . . . . . . . . . . . . . . . . . . . . . . . Cargo Convoy Interrupts . | . . . . . . . . . . . . . . . . . . . . . . . . Stealth | -11 -10 -10 -10 -9 -8 -8 -8 -8 -6 -6 -6 -6 -6 -5 -5 -5 -5 -5 -5 -4 -4 -4 -4 --------- Run | Yrd Mat Min Exi Min Mat Sto Rec Scr Fac Ext Cet Arc Hub Fac Was Fac Upp Upp War Pro Fac Upp Upp Distress Signals 19 | . 3 . . . 2 . . . 1 4 2 . . 2 . 2 . . 1 . 2 . . Communications Jammed . | . . . . . . . . . . . . . . . . . . . . . . . . Distress Signals . | . . . . . . . . . . . . . . . . . . . . . . . . Times Spotted 331 | . 19 10 . 7 34 16 2 . 19 31 26 10 3 3 5 44 5 . 12 20 34 12 19 Peak Tracking Total 13 | . 6 3 . 3 5 4 1 . 3 6 6 1 1 2 5 6 4 . 13 10 6 9 8 Tactical Retreats 16 | . . 2 . 1 2 . 1 . . 4 1 . . 1 . 1 . . . . 1 . 2 Traps | -11 -10 -10 -10 -9 -8 -8 -8 -8 -6 -6 -6 -6 -6 -5 -5 -5 -5 -5 -5 -4 -4 -4 -4 ------- Run | Yrd Mat Min Exi Min Mat Sto Rec Scr Fac Ext Cet Arc Hub Fac Was Fac Upp Upp War Pro Fac Upp Upp Traps Triggered 10 | . 2 . . . 1 . . . 1 2 . . . 2 . 1 . . . . . 1 . Indirectly . | . . . . . . . . . . . . . . . . . . . . . . . . Trap Hack Attempts . | . . . . . . . . . . . . . . . . . . . . . . . . Triggered . | . . . . . . . . . . . . . . . . . . . . . . . . Disarmed . | . . . . . . . . . . . . . . . . . . . . . . . . Reprogrammed . | . . . . . . . . . . . . . . . . . . . . . . . . Reused . | . . . . . . . . . . . . . . . . . . . . . . . . Traps Extracted . | . . . . . . . . . . . . . . . . . . . . . . . . Installed . | . . . . . . . . . . . . . . . . . . . . . . . . Triggered 8 | . . . . . . . . . . . . . . . . . . . 8 . . . . Machines | -11 -10 -10 -10 -9 -8 -8 -8 -8 -6 -6 -6 -6 -6 -5 -5 -5 -5 -5 -5 -4 -4 -4 -4 ---------- Run | Yrd Mat Min Exi Min Mat Sto Rec Scr Fac Ext Cet Arc Hub Fac Was Fac Upp Upp War Pro Fac Upp Upp Machines Disabled 48 | . 7 . . . 2 5 1 . 5 2 3 3 5 . . 9 . . . 1 4 1 . Max in Single Turn 6 | . 6 . . . 1 1 1 . 4 1 1 1 5 . . 4 . . . 1 4 1 . Garrison Access 2 | . . . . . . 1 . . 1 . . . . . . . . . . . . . . Network Hub 1 | . . . . . . . . . . . . . 1 . . . . . . . . . . Machines Repaired . | . . . . . . . . . . . . . . . . . . . . . . . . Machines Dismantled . | . . . . . . . . . . . . . . . . . . . . . . . . Machines Sabotaged . | . . . . . . . . . . . . . . . . . . . . . . . . Overloaded Fab Kills . | . . . . . . . . . . . . . . . . . . . . . . . . Hacking | -11 -10 -10 -10 -9 -8 -8 -8 -8 -6 -6 -6 -6 -6 -5 -5 -5 -5 -5 -5 -4 -4 -4 -4 --------- Run | Yrd Mat Min Exi Min Mat Sto Rec Scr Fac Ext Cet Arc Hub Fac Was Fac Upp Upp War Pro Fac Upp Upp Machines Accessed 74 | . 9 2 2 . 10 5 4 . 10 11 4 1 . 5 . 4 1 1 2 . 3 . . Terminals 45 | . 6 1 . . 7 4 2 . 5 11 4 . . 1 . 2 . 1 . . 1 . . Fabricators 3 | . . . . . . . . . 2 . . . . . . . . . . . 1 . . Repair Stations 4 | . 1 . . . 2 . . . 1 . . . . . . . . . . . . . . Recycling Units 11 | . 2 . . . . . 2 . 1 . . . . 3 . 2 . . . . 1 . . Scanalyzers 2 | . . . . . 1 . . . . . . . . 1 . . . . . . . . . Garrison Access 2 | . . . . . . 1 . . 1 . . . . . . . . . . . . . . Total Hacks 213 | . 22 3 2 . 31 15 10 . 24 35 8 25 . 9 . 16 1 1 2 . 9 . . Successful 114 | . 10 1 2 . 18 5 6 . 10 14 2 25 . 5 . 8 1 1 2 . 4 . . Failed 99 | . 12 2 . . 13 10 4 . 14 21 6 . . 4 . 8 . . . . 5 . . Catastrophic 21 | . 2 1 . . 2 1 . . 5 5 2 . . 2 . . . . . . 1 . . Database Lockouts . | . . . . . . . . . . . . . . . . . . . . . . . . Manual 58 | . 10 2 1 . 12 4 3 . 9 8 2 . . 3 . 4 . . . . . . . Terminals 140 | . 15 2 . . 24 13 8 . 14 35 8 . . 4 . 13 . 1 . . 3 . . Fabricators 8 | . . . . . . . . . 5 . . . . . . . . . . . 3 . . Repair Stations 10 | . 4 . . . 4 . . . 2 . . . . . . . . . . . . . . Recycling Units 16 | . 3 . . . . . 2 . 2 . . . . 3 . 3 . . . . 3 . . Scanalyzers 5 | . . . . . 3 . . . . . . . . 2 . . . . . . . . . Garrison Access 3 | . . . . . . 2 . . 1 . . . . . . . . . . . . . . Terminal Hacks 81 | . 4 1 2 . 12 4 4 . 4 13 2 25 . 2 . 4 1 1 2 . . . . Record 30 | . . . 1 . 1 . . . . . 2 25 . . . . . 1 . . . . . Part Schematic 2 | . . . . . 2 . . . . . . . . . . . . . . . . . . Robot Analysis 2 | . 2 . . . . . . . . . . . . . . . . . . . . . . Prototype ID Bank 5 | . 1 . . . 2 1 . . . . . . . . . 1 . . . . . . . Open Door 11 | . . 1 . . . . . . 1 6 . . . . . . 1 . 2 . . . . Branch Access Points 2 | . . . . . 1 . . . . . . . . . . 1 . . . . . . . Emergency Access Points 1 | . . . . . 1 . . . . . . . . . . . . . . . . . . Alert Level 9 | . . . . . 2 1 1 . 2 2 . . . 1 . . . . . . . . . Unreport Threat 2 | . . . . . 1 . . . . 1 . . . . . . . . . . . . . Locate Traps 9 | . 1 . . . . 1 1 . 1 2 . . . 1 . 2 . . . . . . . Hauler Manifests 1 | . . . . . 1 . . . . . . . . . . . . . . . . . . Registered Components 2 | . . . . . 1 . 1 . . . . . . . . . . . . . . . . Registered Prototypes 1 | . . . . . . 1 . . . . . . . . . . . . . . . . . Zone Layout 3 | . . . . . . . 1 . . 2 . . . . . . . . . . . . . Derelict Proto ID Bank 1 | . . . 1 . . . . . . . . . . . . . . . . . . . . Fabricator Hacks 3 | . . . . . . . . . . . . . . . . . . . . . 3 . . Network Status 1 | . . . . . . . . . . . . . . . . . . . . . 1 . . Load Schematic 1 | . . . . . . . . . . . . . . . . . . . . . 1 . . Build 1 | . . . . . . . . . . . . . . . . . . . . . 1 . . Repair Station Hacks 9 | . 4 . . . 4 . . . 1 . . . . . . . . . . . . . . Scan Component 5 | . 2 . . . 2 . . . 1 . . . . . . . . . . . . . . Repair 4 | . 2 . . . 2 . . . . . . . . . . . . . . . . . . Recycling Unit Hacks 11 | . 2 . . . . . 2 . 1 . . . . 2 . 3 . . . . 1 . . Process 1 | . . . . . . . . . . . . . . . . 1 . . . . . . . Report Inventory 9 | . 2 . . . . . 2 . 1 . . . . 2 . 1 . . . . 1 . . Retrieve Components 1 | . . . . . . . . . . . . . . . . 1 . . . . . . . Scanalyzer 2 | . . . . . 2 . . . . . . . . . . . . . . . . . . Insert Component 1 | . . . . . 1 . . . . . . . . . . . . . . . . . . Analyze 1 | . . . . . 1 . . . . . . . . . . . . . . . . . . Garrison Access Hacks 2 | . . . . . . 1 . . 1 . . . . . . . . . . . . . . Seal Access 2 | . . . . . . 1 . . 1 . . . . . . . . . . . . . . Unauthorized Hacks 6 | . . . . . . . . . 3 1 . . . 1 . 1 . . . . . . . Terminals 4 | . . . . . . . . . 1 1 . . . 1 . 1 . . . . . . . Track 3 | . . . . . . . . . . 1 . . . 1 . 1 . . . . . . . Assimilate 1 | . . . . . . . . . 1 . . . . . . . . . . . . . . Fabricators 2 | . . . . . . . . . 2 . . . . . . . . . . . . . . Liberate 1 | . . . . . . . . . 1 . . . . . . . . . . . . . . Haulers 1 | . . . . . . . . . 1 . . . . . . . . . . . . . . Repair Stations . | . . . . . . . . . . . . . . . . . . . . . . . . Recycling Units . | . . . . . . . . . . . . . . . . . . . . . . . . Scanalyzers . | . . . . . . . . . . . . . . . . . . . . . . . . Garrison Access . | . . . . . . . . . . . . . . . . . . . . . . . . Data Cores Recovered . | . . . . . . . . . . . . . . . . . . . . . . . . Used . | . . . . . . . . . . . . . . . . . . . . . . . . Hacking Detections 50 | . 7 1 . . 8 4 2 . 8 8 4 . . 3 . 2 . . . . 3 . . Full Trace Events 8 | . . 1 . . . . . . 2 3 1 . . . . . . . . . 1 . . Feedback Events 1 | . . . . . . . . . 1 . . . . . . . . . . . . . . Corruption 1 | . . . . . . . . . 1 . . . . . . . . . . . . . . Feedback Blocked . | . . . . . . . . . . . . . . . . . . . . . . . . Robot Schematics Acquired . | . . . . . . . . . . . . . . . . . . . . . . . . Robots Built . | . . . . . . . . . . . . . . . . . . . . . . . . Authchips . | . . . . . . . . . . . . . . . . . . . . . . . . Time . | . . . . . . . . . . . . . . . . . . . . . . . . Total Robot Build Rating . | . . . . . . . . . . . . . . . . . . . . . . . . Part Schematics Acquired 3 | . . . . . 3 . . . . . . . . . . . . . . . . . . Parts Built 1 | . . . . . . . . . . . . . . . . . . . . . 1 . . Authchips . | . . . . . . . . . . . . . . . . . . . . . . . . Time 73 | . . . . . . . . . . . . . . . . . . . . . 73 . . Total Part Build Rating 3 | . . . . . . . . . . . . . . . . . . . . . 3 . . Parts Repaired 4 | . 2 . . . 2 . . . . . . . . . . . . . . . . . . Time 116 | . 58 . . . 58 . . . . . . . . . . . . . . . . . . Parts Recycled . | . . . . . . . . . . . . . . . . . . . . . . . . Recycled Matter 7 | . . . . . . . . . . . . . . . . 7 . . . . . . . Retrieved Matter . | . . . . . . . . . . . . . . . . . . . . . . . . Retrieved Components . | . . . . . . . . . . . . . . . . . . . . . . . . Parts Scanalyzed 1 | . . . . . 1 . . . . . . . . . . . . . . . . . . Part Schematics Acquired 1 | . . . . . 1 . . . . . . . . . . . . . . . . . . Parts Damaged . | . . . . . . . . . . . . . . . . . . . . . . . . Bothacking | -11 -10 -10 -10 -9 -8 -8 -8 -8 -6 -6 -6 -6 -6 -5 -5 -5 -5 -5 -5 -4 -4 -4 -4 ------------ Run | Yrd Mat Min Exi Min Mat Sto Rec Scr Fac Ext Cet Arc Hub Fac Was Fac Upp Upp War Pro Fac Upp Upp Used RIF Installer . | . . . . . . . . . . . . . . . . . . . . . . . . Robots Hacked . | . . . . . . . . . . . . . . . . . . . . . . . . Non-combat . | . . . . . . . . . . . . . . . . . . . . . . . . Combat . | . . . . . . . . . . . . . . . . . . . . . . . . Robot Hacks Applied . | . . . . . . . . . . . . . . . . . . . . . . . . Relay Couplers Released 7 | . . . . . . . . . 4 . . . . . . . . . . . 3 . . Programmers 7 | . . . . . . . . . 4 . . . . . . . . . . . 3 . . Fabnet Peak Effective % . | . . . . . . . . . . . . . . . . . . . . . . . . Robots Rewired 16 | . . . . . . . . . . 7 . . . . . . . . 5 2 . 2 . Allies Hacked . | . . . . . . . . . . . . . . . . . . . . . . . . Hacks Repelled . | . . . . . . . . . . . . . . . . . . . . . . . . Allies | -11 -10 -10 -10 -9 -8 -8 -8 -8 -6 -6 -6 -6 -6 -5 -5 -5 -5 -5 -5 -4 -4 -4 -4 -------- Run | Yrd Mat Min Exi Min Mat Sto Rec Scr Fac Ext Cet Arc Hub Fac Was Fac Upp Upp War Pro Fac Upp Upp Total Allies 29 | . . 2 . 3 . . . . . 15 . . . . . . . . 5 2 . 2 . Largest Group 7 | . . 2 2 3 . . . . . 7 5 . . . . . . . 5 3 3 2 1 Highest-Rated Group 266 | . . 51 51 40 . . . . . 191 152 . . . . . . . 266 159 159 96 49 Highest-Rated Ally 65 | . . 31 31 16 . . . . . 39 39 . . . . . . . 65 65 65 49 49 Total Orders 6 | . . . . . . . 2 . . . 2 . . 2 . . . . . . . . . EXPLORE 3 | . . . . . . . 1 . . . 1 . . 1 . . . . . . . . . RETURN 3 | . . . . . . . 1 . . . 1 . . 1 . . . . . . . . . Ally Attacks 211 | . . 11 . 35 . . 10 . . 95 43 . . 1 . . . . 6 . 5 . 5 Total Damage 3222 | . . 106 . 262 . . 33 . . 1492 693 . . . . . . . 240 . 178 . 218 Kills 18 | . . 1 . 6 . . . . . 8 1 . . . . . . . 1 . 1 . . Allies Corrupted 1 | . . . . . . . . . . . . . . . . . . . . . . 1 . Allies Melted 5 | . . . . . . . 1 . . 1 . . . . . . . . 3 . . . . Intel | -11 -10 -10 -10 -9 -8 -8 -8 -8 -6 -6 -6 -6 -6 -5 -5 -5 -5 -5 -5 -4 -4 -4 -4 ------- Run | Yrd Mat Min Exi Min Mat Sto Rec Scr Fac Ext Cet Arc Hub Fac Was Fac Upp Upp War Pro Fac Upp Upp Robot Analysis Total 2 | . 2 . . . . . . . . . . . . . . . . . . . . . . Derelict Logs Recovered 8 | . . 2 . 1 . . . . . . . . . . . . 1 2 . 1 . 1 . Drone Launches 7 | . . . . . . . 3 . . . 3 . . 1 . . . . . . . . . Drone Recoveries 4 | . . . . . . . 3 . . . 1 . . . . . . . . . . . . Exploration | -11 -10 -10 -10 -9 -8 -8 -8 -8 -6 -6 -6 -6 -6 -5 -5 -5 -5 -5 -5 -4 -4 -4 -4 ------------- Run | Yrd Mat Min Exi Min Mat Sto Rec Scr Fac Ext Cet Arc Hub Fac Was Fac Upp Upp War Pro Fac Upp Upp Turns Passed 25912 | 250 1319 1492 645 586 2712 1383 855 1115 2160 1645 1221 510 309 834 427 1674 667 594 937 781 2073 840 883 Spaces Moved 11678 | 106 614 780 403 353 956 441 421 690 1022 527 532 190 102 395 179 693 347 357 520 376 840 503 331 Core 98 | 3 . . . . . . . . . . . . . . . . . . . . . . 95 Treads 9752 | 103 614 780 403 353 646 441 421 690 206 . 499 190 102 395 179 690 347 357 520 376 836 368 236 Legs 1379 | . . . . . . . . . 816 527 33 . . . . 3 . . . . . . . Wheels 310 | . . . . . 310 . . . . . . . . . . . . . . . . . . Hover 139 | . . . . . . . . . . . . . . . . . . . . . 4 135 . Flight . | . . . . . . . . . . . . . . . . . . . . . . . . Fastest Speed 50 | 50 160 160 160 160 115 161 161 161 140 140 140 160 160 160 160 160 165 165 164 165 124 124 50 Average Speed 165 | 156 160 160 160 160 159 166 161 161 149 213 158 160 160 160 160 164 165 165 164 165 167 153 238 Slowest Speed 320 | 160 160 160 160 160 240 170 161 161 250 250 160 160 160 160 160 260 166 165 165 165 250 250 320 Overloaded Moves . | . . . . . . . . . . . . . . . . . . . . . . . . Propulsion Burnouts . | . . . . . . . . . . . . . . . . . . . . . . . . Robots Hopped . | . . . . . . . . . . . . . . . . . . . . . . . . Cave-ins Triggered 2 | . . . . . . . . . . 1 . . . . . 1 . . . . . . . Exploration Rate (%) 61 | 6 96 98 88 79 61 52 98 56 29 59 96 93 19 14 82 23 62 56 86 56 19 77 59 Regions Visited 23 Branch Regions 16 Pre-discovered Areas 4 | . . 1 1 1 . . . . . . . . . . . . . . . . . 1 . Known Exits Taken 6 | . . . . . 1 . . . . 1 . . 1 . . 1 1 . . 1 . . . Unknown Exits Taken 15 | 1 1 1 1 1 . 1 1 1 1 . 1 1 . . . . . 1 1 . 1 1 . Scrap Searched 12 | . . 1 . 1 . . . 7 . . . . . . . . 1 . . 1 . . 1 Spaces Dug 179 | . 6 4 . . 8 21 . . 7 34 . 2 5 2 22 30 . . . . 36 . 2 Terrain Destroyed 807 | . 41 4 . 24 64 40 . . 22 136 1 14 179 10 28 104 14 . 2 17 84 16 7 Melee 15 | . . . . . 2 . . . 7 . . . 4 2 . . . . . . . . . Projectile 285 | . 6 4 . . 17 21 . . . 8 1 14 10 8 28 72 14 . 2 3 70 . 7 AOE 507 | . 35 . . 24 45 19 . . 15 128 . . 165 . . 32 . . . 14 14 16 . Terrain Rammed . | . . . . . . . . . . . . . . . . . . . . . . . . Walls Destroyed . | . . . . . . . . . . . . . . . . . . . . . . . . Machines Disabled . | . . . . . . . . . . . . . . . . . . . . . . . . Actions | -11 -10 -10 -10 -9 -8 -8 -8 -8 -6 -6 -6 -6 -6 -5 -5 -5 -5 -5 -5 -4 -4 -4 -4 --------- Run | Yrd Mat Min Exi Min Mat Sto Rec Scr Fac Ext Cet Arc Hub Fac Was Fac Upp Upp War Pro Fac Upp Upp Total 16624 | 141 846 983 404 367 1938 942 580 695 1547 944 782 334 224 567 244 1012 418 360 591 449 1316 552 388 Wait 3162 | . 141 176 . 1 752 350 137 . 412 239 120 91 103 133 8 149 45 . 30 3 267 1 4 Move 11655 | 105 613 779 402 352 955 440 420 689 1021 525 531 189 101 395 178 692 346 356 519 375 839 502 331 Hop . | . . . . . . . . . . . . . . . . . . . . . . . . Pick Up 112 | 4 14 1 1 3 18 8 3 2 13 4 10 2 . 6 . 15 1 . . . 7 . . Fast Attach 141 | 7 3 . . . 24 11 2 1 7 6 14 5 . 1 5 17 6 . 3 1 19 5 4 Attach 61 | . 2 . . . 9 5 . . 5 5 8 1 . 1 . 9 . . . . 7 1 8 Detach 17 | . 1 . . . 3 1 . . . . 2 1 . . . 2 . . . . 3 1 3 Swap 202 | . 10 3 . 2 27 19 2 . 16 12 9 5 8 8 4 7 3 4 2 13 34 10 4 Drop 160 | . 5 2 1 3 29 15 6 3 15 8 20 6 . 6 2 10 6 . 4 1 14 1 3 Fire 946 | 25 57 22 . 6 110 88 10 . 50 57 68 34 8 13 47 111 11 . 4 46 126 22 31 Melee 32 | . . . . . 11 5 . . 8 . . . 4 4 . . . . . . . . . Ram . | . . . . . . . . . . . . . . . . . . . . . . . . Kick . | . . . . . . . . . . . . . . . . . . . . . . . . Crush . | . . . . . . . . . . . . . . . . . . . . . . . . Escape Stasis 11 | . . . . . . . . . . 11 . . . . . . . . . . . . . Rewire 125 | . . . . . . . . . . 77 . . . . . . . . 29 10 . 9 . Trap . | . . . . . . . . . . . . . . . . . . . . . . . . Miscellaneous . | . . . . . . . . . . . . . . . . . . . . . . . . Route ------- -11/Scrapyard -10/Materials (discovered 4 exits: [*Mat x3] / *Min) -10/Mines (discovered 3 exits: [*Mat x2] / *Exi) -10/Exiles -9/Mines -8/Materials -8/Storage -8/Recycling (discovered 2 exits: *Fac / [*Scr]) -8/Scraptown -6/Factory (discovered 3 exits: *Fac / [*Low] / *Ext) -6/Extension (discovered 2 exits: *Fac / *Cet) -6/Cetus (discovered 3 exits: *Fac x2 / *Arc) -6/Archives (discovered 3 exits: *Fac / [*Hub x2]) -6/Hub_04(d) (discovered 2 exits: *Fac x2) -5/Factory -5/Waste -5/Factory (discovered 2 exits: *Upp x2) -5/Upper Caves -5/Upper Caves (discovered 2 exits: Fac / *War) -5/Warlord -4/Proximity Caves -4/Factory -4/Upper Caves -4/Upper Caves (discovered 1 exit: [*Res]) History --------- Turn | Location | Event 13 | -11/Scrapyard | Discovered new exit (range 14) 251 | -11/Scrapyard | Entered Materials 303 | -10/Materials | Build established: Mutant 345 | -10/Materials | Discovered new exit (range 3) 549 | -10/Materials | Discovered new exit (range 16) 1080 | -10/Materials | Discovered new exit (range 10) 1283 | -10/Materials | Discovered new exit (range 16) 1319 | -10/Materials | Repaired Lgt. Treads 1352 | -10/Materials | Repaired Autogun 1570 | -10/Materials | Entered Mines 1579 | -10/Mines | Met a Derelict bent on vengeance 1650 | -10/Mines | Learned location of Storage (-8) 2363 | -10/Mines | Discovered new exit (range 11) 2465 | -10/Mines | Discovered new exit (range 5) 2535 | -10/Mines | Found the Drone Emporium 2540 | -10/Mines | Learned 2 Materials zone layouts 2542 | -10/Mines | Learned 4 Materials zone layouts 2545 | -10/Mines | Found Prototype Device 2964 | -10/Mines | Deemed a non-threat by the Exiles lab entrance 2964 | -10/Mines | Discovered new exit (range 5) 3062 | -10/Mines | Entered Exiles 3062 | -10/Exiles | Accompanied by 2 allies 3092 | -10/Exiles | Led the pair of lost Derelicts to a safe place 3106 | -10/Exiles | Met 8R-AWN 3133 | -10/Exiles | Met EX-HEX 3182 | -10/Exiles | Met EX-BIN 3200 | -10/Exiles | Aligned with FarCom system 3202 | -10/Exiles | Given EX-Vault access code 3248 | -10/Exiles | Opened EX-Vault 3260 | -10/Exiles | Found Superbattery 3298 | -10/Exiles | Warned to stay clear of 0b10 Research branches 3344 | -10/Exiles | Met EX-DEC 3376 | -10/Exiles | Learned location of Zion (-7) 3459 | -10/Exiles | Visited The Gauntlet 3686 | -10/Exiles | Discovered new exit (range 12) 3707 | -10/Exiles | Left Exiles lab with Superbattery 3707 | -10/Exiles | Entered Mines 3717 | -9/Mines | Assisted by bots powering up and referring to "LRC-V3" 3876 | -9/Mines | Assembled infested the area 4105 | -9/Mines | Found a damaged Exp. Sensor Array with a note attached 4227 | -9/Mines | Discovered new exit (range 7) 4293 | -9/Mines | Entered Materials 4293 | -8/Materials | Evolved 4 slots: Propulsion x1, Utility x3 4295 | -8/Materials | Identified Thief Drone Bay 4589 | -8/Materials | Lost 6 parts (1p1n2u2w) 5068 | -8/Materials | Repaired Lgt. Treads 5522 | -8/Materials | Identified exit to Storage 5751 | -8/Materials | Build established: Scavenger-Mutant 6335 | -8/Materials | Repaired Cooling System 6503 | -8/Materials | Build established: Mutant 7005 | -8/Materials | Entered Storage 7122 | -8/Storage | Garrison activated, responded to threat 7443 | -8/Storage | Build established: Scavenger-Mutant 7516 | -8/Storage | Core integrity fell below 50% 7536 | -8/Storage | Garrison activated, responded to threat 7697 | -8/Storage | Met 01-MTF 7970 | -8/Storage | Discovered new exit (range 5) 8388 | -8/Storage | Entered Recycling 8388 | -8/Recycling | Accompanied by 1 ally (01-MTF) 8535 | -8/Recycling | Build established: Mutant 8864 | -8/Recycling | Discovered new exit (range 23) 9171 | -8/Recycling | Scanned before Scraplab entrance 9229 | -8/Recycling | Entered Scraplab 9242 | -8/Recycling | Discovered new exit (range 2) 9243 | -8/Recycling | Entered Scraptown 9243 | -8/Scraptown | System corruption cleaned by C-Scrubber 9615 | -8/Scraptown | Visited Bundlers 9989 | -8/Scraptown | Visited Cyclists 10049 | -8/Scraptown | Turned away by UFD registrar 10074 | -8/Scraptown | Visited Junk Repository 10107 | -8/Scraptown | Visited Awakened 10176 | -8/Scraptown | Build established: Hacker-Mutant 10218 | -8/Scraptown | Visited SPCMW 10266 | -8/Scraptown | Discovered new exit (range 11) 10358 | -8/Scraptown | Entered Factory 10358 | -6/Factory | Evolved 4 slots: Power x1, Propulsion x1, Utility x2 10968 | -6/Factory | Discovered new exit (range 8) 11215 | -6/Factory | Discovered new exit (range 6) 12508 | -6/Factory | Discovered new exit (range 6) 12518 | -6/Factory | Entered Extension 12667 | -6/Extension | Rescued a captive Derelict 12742 | -6/Extension | Rescued a captive Derelict 13302 | -6/Extension | Rescued a captive Derelict 13302 | -6/Extension | Rescued a captive Derelict 13561 | -6/Extension | Crushed by falling debris 13647 | -6/Extension | Rescued a captive Derelict 13856 | -6/Extension | Rescued a captive Derelict 13856 | -6/Extension | Rescued a captive Derelict 13943 | -6/Extension | Lost 6 allies 14075 | -6/Extension | Rescued a captive Derelict 14104 | -6/Extension | Discovered new exit (range 10) 14104 | -6/Extension | Discovered new exit (range 14) 14136 | -6/Extension | Identified exit to Factory 14141 | -6/Extension | Identified exit to Cetus 14163 | -6/Extension | Entered Cetus 14163 | -6/Cetus | Accompanied by 5 allies 14174 | -6/Cetus | Build established: Scavenger-Mutant 14182 | -6/Cetus | Spotted Cetus Guard 14182 | -6/Cetus | Spotted Cetus Guard 14184 | -6/Cetus | Spotted Cetus Guard 14185 | -6/Cetus | Spotted Cetus Guard 14203 | -6/Cetus | Destroyed Cetus Guard 14208 | -6/Cetus | Allies destroyed Cetus Guard 14216 | -6/Cetus | Destroyed Cetus Guard 14220 | -6/Cetus | Destroyed Cetus Guard 14224 | -6/Cetus | Lost 4 allies 14249 | -6/Cetus | Lost 4 parts (1p1u2w) 14335 | -6/Cetus | Discovered exit to Factory (range 15) 14700 | -6/Cetus | Found a strange terminal 14732 | -6/Cetus | Discovered new exit (range 15) 14746 | -6/Cetus | Discovered exit to Factory (range 37) 14801 | -6/Cetus | Spotted Cetus Guard 14802 | -6/Cetus | Spotted Cetus Guard 14803 | -6/Cetus | Spotted Cetus Guard 14803 | -6/Cetus | Spotted Cetus Guard 14813 | -6/Cetus | Destroyed Cetus Guard 14826 | -6/Cetus | Destroyed Cetus Guard 14842 | -6/Cetus | Destroyed Cetus Guard 14856 | -6/Cetus | Destroyed Cetus Guard 14913 | -6/Cetus | Security sweep announced 15046 | -6/Cetus | Met Revision 17 15384 | -6/Cetus | Entered Archives 15544 | -6/Archives | Unable to access archive contents 15546 | -6/Archives | Discovered new exit (range 16) 15571 | -6/Archives | Discovered new exit (range 16) 15591 | -6/Archives | Unable to access archive contents 15610 | -6/Archives | Unable to access archive contents 15616 | -6/Archives | Discovered exit to Factory (range 16) 15628 | -6/Archives | Unable to access archive contents 15894 | -6/Archives | Entered Hub_04(d) 16003 | -6/Hub_04(d) | Discovered exit to Factory (range 10) 16143 | -6/Hub_04(d) | Discovered exit to Factory (range 4) 16200 | -6/Hub_04(d) | Network Hub disabled 16203 | -6/Hub_04(d) | Entered Factory 16203 | -5/Factory | Evolved 2 slots: Propulsion x2 17037 | -5/Factory | Sucked down chute 17037 | -5/Factory | Entered Waste 17050 | -5/Waste | Spotted C-40 Crusher 17057 | -5/Waste | Spotted C-40 Crusher 17149 | -5/Waste | Spotted C-40 Crusher 17196 | -5/Waste | Destroyed C-40 Crusher 17283 | -5/Waste | Spotted C-40 Crusher 17305 | -5/Waste | Crushed by Compactor (1 part destroyed, 1 dropped) 17308 | -5/Waste | Crushed by Compactor (0 parts destroyed, 1 dropped) 17315 | -5/Waste | Crushed by Compactor (1 part destroyed) 17325 | -5/Waste | Crushed by Compactor (0 parts destroyed, 1 dropped) 17331 | -5/Waste | Crushed by Compactor (0 parts destroyed, 1 dropped) 17334 | -5/Waste | Crushed by Compactor (1 part destroyed, 1 dropped) 17337 | -5/Waste | Spotted C-40 Crusher 17365 | -5/Waste | Lost 3 parts (1p2u) 17409 | -5/Waste | Spotted C-40 Crusher 17448 | -5/Waste | Discovered new exit (range 11) 17464 | -5/Waste | Entered Factory 17748 | -5/Factory | Identified exit to Upper Caves 18007 | -5/Factory | Lost 4 parts (1p3u) 18180 | -5/Factory | Crushed by falling debris 18180 | -5/Factory | System corruption reached 10% 18663 | -5/Factory | Build established: Scavenger-Skirmisher 18964 | -5/Factory | First assault squad dispatched 19138 | -5/Factory | Entered Upper Caves 19425 | -5/Upper Caves | Build established: Scavenger-Mutant 19560 | -5/Upper Caves | Identified exit to Upper Caves 19805 | -5/Upper Caves | Entered another Upper Caves area 19999 | -5/Upper Caves | Learned Factory interactive machine intel 20315 | -5/Upper Caves | Discovered new exit (range 17) 20316 | -5/Upper Caves | Encountered a Warlord checkpoint 20339 | -5/Upper Caves | Identified exit to Factory 20399 | -5/Upper Caves | Entered Warlord 20456 | -5/Warlord | System corruption cleaned by Quarantine Array 20749 | -5/Warlord | Warlord's base attacked by MAIN.C 21066 | -5/Warlord | Met Warlord 21099 | -5/Warlord | Warlord forces counterattacked 21200 | -5/Warlord | Opened side exit 21264 | -5/Warlord | Spotted Striker 21268 | -5/Warlord | Spotted Striker 21276 | -5/Warlord | Discovered new exit (range 14) 21288 | -5/Warlord | Destroyed Striker 21320 | -5/Warlord | Lost 6 allies 21336 | -5/Warlord | Entered Proximity Caves 21336 | -4/Proximity Caves | Accompanied by 1 ally 21898 | -4/Proximity Caves | Attracted the attention of an 0b10 outpost 21955 | -4/Proximity Caves | Destroyed 17 combat bots 22041 | -4/Proximity Caves | Attracted the attention of an 0b10 checkpoint 22076 | -4/Proximity Caves | Learned location of 1 exit from Research 22084 | -4/Proximity Caves | Discovered exit to Factory (range 6) 22117 | -4/Proximity Caves | Entered Factory 22117 | -4/Factory | Accompanied by 3 allies 22117 | -4/Factory | Evolved 2 slots: Utility x2 22118 | -4/Factory | Loaded intel: 52 interactive machine locations 22371 | -4/Factory | Lost 3 allies 22393 | -4/Factory | Garrison activated, responded to threat 23117 | -4/Factory | First assault squad dispatched 23195 | -4/Factory | Discovered new exit (range 5) 23416 | -4/Factory | System corruption reached 10% 23460 | -4/Factory | Lost 3 parts (3u) 23638 | -4/Factory | Fabricated Hacking Suite? 24190 | -4/Factory | Entered Upper Caves 24204 | -4/Upper Caves | Learned location of Testing (-2) 24207 | -4/Upper Caves | Attracted the attention of an 0b10 checkpoint 24360 | -4/Upper Caves | Attracted the attention of an 0b10 outpost 24397 | -4/Upper Caves | Destroyed 8 combat bots 24433 | -4/Upper Caves | System corruption reached 30% 24434 | -4/Upper Caves | Lost 6 parts (1p4n1u) 25022 | -4/Upper Caves | Discovered new exit (range 5) 25030 | -4/Upper Caves | Entered another Upper Caves area 25030 | -4/Upper Caves | Accompanied by 1 ally 25104 | -4/Upper Caves | Lost 9 parts (1p3n2u3w) 25453 | -4/Upper Caves | Discovered new exit (range 13) 25862 | -4/Upper Caves | Core integrity fell below 50% 25872 | -4/Upper Caves | Attracted the attention of an 0b10 checkpoint 25892 | -4/Upper Caves | Core integrity fell below 20% 25913 | -4/Upper Caves | Destroyed by G-67 Veteran with Plasma Rifle Last Messages --------------- 25856_ Structural Scanner destroyed. 25856_ Imp. Weapon Cycler destroyed. 25857_ Dropped Wave Gun. 25864_ System corrupted: Matter fused (-5). 25864_ Myomer Leg destroyed. 25872_ Y-64 Sentinel: "INTERCEPTING UNREGISTERED DERELICT." 25872_ Acquired 2 matter. 25872_ Slug penetrates Wall. 25879_ System corrupted: Heat flow error (+273). 25891_ Hacking Suite destroyed. 25893_ Acquired 29 matter. 25894_ Searching scrap... 25894_ Found Mak. Power Source. 25894_ Found Hrd. Light Armor Plating. 25894_ Found Hvy. Gauss Cannon. 25894_ Found Unknown Energy Cannon. 25894_ Found 37 Matter. 25895_ System corrupted: Matter fused (-5). 25895_ Acquired 9 matter. 25910_ Critical hit (Burn: +50). Map ----- +----------------------------------------------------+ | ?????????????????????????????????????????????????? | | ?????????????????????????????????????????????????? | | ?????????????????????????????????????????????????? | | ?????????????????????????????????????????????????? | | ?????????????????????????????????????????????????? | | ?????????????????????????????????????????????????? | | ?????????????????????????????????????????????????? | | ????###??????????????????????????????????????????? | | #### ##?????????????????????????????????????????? | | #?????????????????????????????????????????? | | #?????????###??????????????????????????????? | | ####?????????# ##?????????????????????????????? | | #????????????# #?????????????????????????????? | | ######??????## #?????????????????????????????? | | #????### %#?????????????????????????????? | | ###### #??????????????????????????????? | | ## !]]% ##?????????????????????????????? | | ####%#### % ##????????????????????????????? | | #??#*#??#% % ##???????????????????????????? | | #??# #??# % #???????????????????????????? | | ### ##?# #??# ##???????????????????????????? | | ??# #?# #??# % ##????????????????????????????? | | ?## #?# ## #??#####??????????????????????? | | ## ### #### #??# ?????????????????? | | ### % g## ##?# ????????????????? | | ##### %% g g ;@## ?????????????????? | | # ##?## Y g ### ??????????????????? | | # #??# %######## ??????????????????? | | " #??# ##?????? #??????????????????? | | " #??# ###?????? ##??????????????????? | | ##?## ##????? #???????????????????? | | #####% #?????# #???????????????????? | | # %##????# #???????????????????? | | ## !% #???## ##???????????? ###??? | | ?### ##### ## ##### #??????????? ??? | | ???# ##???###### #??#####???? ?? | | ???####????# #### #??? ?? | | ???????????# ##### ## #???# ?? | | ???????????# #???## # ##?# ?? | | ???????????# ????# ## ## ?? | | ???????????# ???## ## ??? | | ???????????# #???#### #????????? | | ???????????# ##??????# ##???????? | | ???????????###########???????## #???????? | | ?????????????????????????####### #???????? | | ????????????????????????######?## #???????? | | ????????????????????????### ##?## ##???????? | | ????????????????????????## ##### ######????? | | ????????????????????????## ### #########???? | | ??????????????????????????# #??## ###???? | +----------------------------------------------------+ Best States ------------- Heat Dissipation 93 Energy Generation 44 Energy Capacity 715 Matter Stores 400 Matter Capacity 400 Sight Range 20 Terrain Scan Density 10 Power Amplification 30 Armor Coverage 1050 Resistance: KI 20 Resistance: TH 30 Core Shielding 30 Propulsion Shielding 33 Weapon Cycling 20 Evasion (%) 55 Targeting Accuracy 12 Melee Accuracy 6 Target Analysis 8 Recoil Reduction 6 Kinecelleration 40 Offensive Hacking 20 Defensive Hacking 22 Item Schematics ----------------- Med. Armor Plating | -8/Materials | Hacked Hacking Suite | -8/Materials | Hacked Hvy. EM Shotgun | -8/Materials | Scanalyzed Robot Schematics ------------------ None Fabricated ------------ Hacking Suite | x1 | -4/Factory Alien Tech Used ----------------- None Achievements -------------- Revising The Future Challenges ------------ None Game ------ Seed DamperAblativeReconstructor Manual? 0 Play Time 04:42:21 Cumulative 105.5 hours Start 2024.09.08 @ 17:00:28 End 2024.09.12 @ 07:14:53 Sessions 11 Manual Loads 0 Difficulty Rogue Special Mode None Game No. 71 Rogue 50 Adventurer 21 Explorer 0 Win Type - Total 1 Types 1/0/0/0/0/0/0/0/0 Lore% 32 Gallery% 53 Achievement% 44 Wizard Run 0 Options --------- Layout 1 ASCII 0 Keyboard 0 Movement Mouse Keybinds 0 Fullscreen 2 Font 32/SmallcapsGlow Map View 77x35 Zoom Use 0% Tactical HUD 1 Map Filters NONE Filters NONE Steam 1 RUN: 1d74e211-3251-45c0-85e5-b477c4be18cd